bitfinex/quotes_ETHUSD_20220105
["timestamp","ask_amount","ask_price","bid_price","bid_amount"]
[1641409633927,2.0095787,3733.3,3732.7,0.00454739]
[1641409634123,1.3396987,3733.3,3732.7,0.00454739]
[1641409634324,1.0,3733.9,3732.7,0.00454739]
[1641409634523,4.52622055,3734.5,3732.7,0.00454739]
[1641409634524,0.32,3734.5,3732.7,0.00454739]
[1641409634723,0.6696816,3733.9,3733.5,0.57479052]
[1641409635975,0.6696753,3734.2,3733.5,0.57479052]
[1641409636179,0.6697,3734.3,3732.7,0.00454739]
[1641409636180,0.32,3734.0,3732.7,0.00454739]
[1641409636376,2.50044164,3733.9,3732.7,0.00454739]
[1641409636585,2.50044164,3733.9,3732.5,1.33948]
[1641409636780,0.32,3734.0,3732.6,0.00511581]
[1641409637181,0.66975,3733.9,3733.6,0.49539978]
[1641409637383,1.3396318,3733.8,3733.6,0.49539978]
[1641409639227,0.32,3734.5,3733.6,0.49539978]
[1641409639422,1.0,3734.6,3733.6,5.39539978]
[1641409639626,0.32,3735.0,3733.6,5.39539978]
[1641409640225,2.76760283,3735.0,3733.6,0.49539978]
[1641409640429,0.6696593,3734.2,3733.6,0.79539978]
[1641409640624,2.3256896,3734.8,3733.6,0.49539978]
[1641409640824,1.10509149,3734.5,3733.6,0.49539978]
[1641409641435,0.66976,3733.9,3733.6,0.49539978]
[1641409641632,1.3395665,3733.8,3733.6,0.49539978]
[1641409642634,1.3395665,3733.8,3733.4,2.69429775]
[1641409642875,0.66981,3733.6,3733.4,2.69429775]
[1641409643279,0.66981,3733.6,3733.2,0.3]
[1641409643480,1.3395665,3733.8,3733.2,0.3]
[1641409643681,1.0,3734.4,3733.3,0.00113685]
[1641409643880,1.6592424,3734.5,3733.4,0.59399118]
[1641409644081,1.3392424,3734.5,3733.4,0.59399118]
[1641409644485,1.3392424,3734.5,3733.6,9.84429775]
[1641409644883,0.6695966,3734.3,3733.6,11.00075273]
[1641409645082,0.6695966,3734.3,3733.6,8.30645498]
[1641409645481,1.3392424,3734.5,3733.6,8.00645498]
[1641409645681,2.3286786,3734.9,3733.6,8.00645498]
[1641409646283,0.6695865,3734.1,3733.6,8.00645498]
[1641409646483,0.98957,3734.9,3733.6,8.00645498]
[1641409646728,0.98957,3734.9,3733.6,8.30645498]
[1641409647533,0.98957,3734.9,3733.6,1.15645498]
[1641409647832,0.98957,3734.9,3733.6,4.74899662]
[1641409647833,0.6695807,3734.2,3733.6,4.74899662]
[1641409648232,0.6695807,3734.2,3733.6,4.44899662]
[1641409648836,0.6695807,3734.2,3733.6,4.74899662]
[1641409649033,3.685e-05,3733.7,3733.6,5.74899662]
[1641409649233,3.685e-05,3733.7,3733.6,9.84254164]
[1641409649738,3.685e-05,3733.7,3733.6,5.25]
[1641409650237,3.685e-05,3733.7,3733.4,1.20521]
[1641409650479,3.685e-05,3733.7,3733.3,0.00113685]
[1641409650676,3.685e-05,3733.7,3733.5,0.0011]
[1641409650877,3.685e-05,3733.7,3733.2,0.00280527]
[1641409651278,0.6697331,3733.5,3733.2,0.00280527]
[1641409651484,0.6697331,3733.5,3733.3,0.57911012]
[1641409651882,0.6697331,3733.5,3733.4,0.00166842]
[1641409653088,3.685e-05,3733.7,3733.4,0.00166842]
[1641409654524,3.685e-05,3733.7,3733.4,3.66969056]
[1641409654723,3.685e-05,3733.7,3733.4,3.96969056]
[1641409654930,3.685e-05,3733.7,3733.5,0.0011]
[1641409655526,3.685e-05,3733.7,3733.6,7.81951]
[1641409655924,3.685e-05,3733.7,3733.6,9.11951]
[1641409656424,2.21664113,3734.7,3733.6,9.11951]
[1641409656425,2.21664113,3734.7,3733.7,7.15]
[1641409656624,2.21664113,3734.7,3734.1,0.26773]
[1641409656827,0.00511581,3734.6,3734.3,1.55619788]
[1641409657026,0.00511581,3734.6,3734.3,1.85619788]
[1641409657226,0.00454738,3734.5,3734.3,1.85619788]
[1641409657628,1.29535505,3735.6,3734.9,0.26774]
[1641409657875,2.2404441,3736.0,3735.2,0.66934]
[1641409658076,1.30752728,3736.0,3735.2,0.66934]
[1641409658273,0.01193689,3735.8,3735.2,0.66934]
[1641409658677,0.01136846,3735.7,3735.2,0.66934]
[1641409659079,0.01080004,3735.6,3735.3,0.65241362]
[1641409659481,0.01023162,3735.5,3735.3,0.65241362]
[1641409659880,0.00966319,3735.4,3735.3,0.65241362]
[1641409661483,0.00966319,3735.4,3735.3,0.95241362]
[1641409661484,2.23198867,3735.4,3735.3,0.95241362]
[1641409661945,2.23198867,3735.4,3735.3,3.44984107]
[1641409662140,2.23198867,3735.4,3735.3,5.30241362]
[1641409662845,1.29535505,3736.0,3735.4,2.23181133]
[1641409663039,1.29535505,3736.0,3735.7,0.82458479]
[1641409663241,0.00284212,3735.9,3735.8,2.78924813]
[1641409663539,0.00284212,3735.9,3735.8,0.56765]
[1641409664542,0.00284212,3735.9,3735.8,3.00239443]
[1641409664743,0.00284212,3735.9,3735.8,0.56765]
[1641409665144,4.212e-05,3735.9,3735.8,3.04444844]
[1641409665377,6.17,3736.9,3735.8,0.56765]
[1641409665574,6.17,3736.9,3736.5,0.66899]
[1641409665873,0.00511581,3736.8,3736.5,0.66899]
[1641409666077,0.00511581,3736.8,3736.6,0.48828139]
[1641409666277,0.00454739,3736.7,3736.6,0.48828139]
[1641409666481,6.17,3736.9,3736.6,0.48828139]
[1641409666677,6.15877809,3736.9,3736.7,0.80265]
[1641409667079,1.72455363,3737.7,3736.8,0.3]
[1641409667279,1.72455363,3737.7,3737.2,0.66886]
[1641409667482,9.69240164,3738.5,3737.3,1.5079073]
[1641409667483,0.00511581,3737.6,3737.3,1.5079073]
[1641409667677,0.00511581,3737.6,3737.3,1.8079073]
[1641409667882,0.00454739,3737.5,3737.3,1.8079073]
[1641409668280,0.00397896,3737.4,3737.3,2.0754773]
[1641409668479,0.00397896,3737.4,3737.3,9.2254773]
[1641409668480,0.82409896,3737.4,3737.3,9.2254773]
[1641409668678,5.9696,3737.8,3737.3,10.2254773]
[1641409668879,1.74068084,3738.7,3737.4,7.15]
[1641409669121,0.00568424,3738.4,3738.0,0.4011899]
[1641409669328,0.00568424,3738.4,3738.1,0.53491]
[1641409669526,0.00511581,3738.3,3738.1,0.53491]
[1641409670026,1.74068084,3738.9,3738.3,0.3]
[1641409670224,0.81433364,3739.3,3738.8,0.53374708]
[1641409670225,1.74068084,3739.1,3738.8,0.53374708]
[1641409671026,1.74068084,3739.1,3738.3,0.3]
[1641409671227,1.74068084,3739.1,3737.4,4.8579776]
[1641409671429,1.4889071,3739.0,3737.4,4.8579776]
[1641409671628,0.82,3739.0,3737.4,4.8579776]
[1641409671829,1.7492072,3738.9,3737.4,0.27639994]
[1641409672030,2.0692072,3738.9,3737.4,0.27639994]
[1641409672229,0.00795793,3738.8,3738.1,0.57657862]
[1641409672430,0.76497398,3738.7,3738.1,0.57657862]
[1641409672630,0.66895,3738.6,3738.1,0.57657862]
[1641409672877,0.66895,3738.6,3737.4,0.27639994]
[1641409672878,0.67577109,3738.6,3737.4,0.27639994]
[1641409673085,0.67577109,3738.6,3737.3,1.85137682]
[1641409673086,0.32625266,3738.5,3737.3,1.85137682]
[1641409673280,0.32625266,3738.5,3737.3,1.76621682]
[1641409673281,0.01243053,3738.4,3737.3,1.76621682]
[1641409673479,0.01243053,3738.4,3736.6,2.72766084]
[1641409673480,0.32,3738.3,3736.6,2.72766084]
[1641409673682,1.04834085,3737.9,3736.6,2.72766084]
[1641409673883,2.06068084,3737.8,3736.7,0.00397896]
[1641409674082,2.06068084,3737.8,3737.2,0.48460293]
[1641409674083,2.06295454,3737.8,3737.2,0.48460293]
[1641409674284,1.74238611,3737.7,3737.2,0.48460293]
[1641409674485,1.74238611,3737.7,3736.2,0.00682108]
[1641409674486,1.6582617,3737.6,3736.2,0.00682108]
[1641409674686,0.95432164,3737.0,3736.2,0.00682108]
[1641409674886,0.32,3737.0,3736.1,0.0073895]
[1641409675485,0.6692821,3736.7,3735.8,2.46536034]
[1641409675694,1.3387165,3736.8,3735.9,0.67350255]
[1641409675695,0.6694,3736.3,3735.9,0.67350255]
[1641409676087,1.60471008,3736.3,3735.9,0.67350255]
[1641409676489,0.9893968,3736.2,3735.9,0.67350255]
[1641409676744,0.9893968,3736.2,3735.9,0.48788255]
[1641409676944,0.9893968,3736.2,3735.9,0.00113685]
[1641409677348,0.9893968,3736.2,3735.3,0.00454739]
[1641409677546,0.9893968,3736.2,3734.6,3.63688112]
[1641409677547,0.6694407,3735.8,3734.7,0.00795793]
[1641409677746,1.33899,3736.1,3734.7,0.00795793]
[1641409677747,2.95165232,3735.7,3734.7,0.00795793]
[1641409677953,0.32,3735.6,3734.7,0.00795793]
[1641409678151,0.52595873,3735.4,3734.7,0.64149626]
[1641409678356,0.96452438,3735.2,3734.7,0.00795793]
[1641409678550,0.32,3735.1,3734.8,0.00738951]
[1641409678849,0.32,3735.1,3734.2,3.38014274]
[1641409679051,2.42437679,3735.0,3734.2,3.38014274]
[1641409679452,0.00341054,3734.9,3734.5,0.51527037]
[1641409679852,0.00284211,3734.8,3734.0,0.76278813]
[1641409680258,0.66962,3734.9,3734.0,0.76278813]
[1641409680259,0.00227369,3734.7,3734.1,0.00113685]
[1641409680679,0.00170527,3734.6,3734.1,0.00113685]
[1641409680884,0.00170527,3734.6,3734.1,0.30113685]
[1641409681079,0.00113684,3734.5,3734.1,0.30113685]
[1641409681478,0.32,3735.6,3734.1,0.30113685]
[1641409681479,3.43660438,3735.5,3734.1,0.30113685]
[1641409681680,1.41605894,3735.5,3734.8,0.64341874]
[1641409681983,0.00625265,3735.4,3734.8,0.94341874]
[1641409682382,0.00568423,3735.3,3734.9,0.3]
[1641409682782,0.00511581,3735.2,3735.0,1.40557]
[1641409682983,0.00511581,3735.2,3735.1,8.45912325]
[1641409683182,1.0,3736.2,3735.1,8.75912325]
[1641409683387,1.0,3736.2,3735.7,0.85465393]
[1641409683584,0.01023162,3736.1,3735.7,0.85465393]
[1641409683784,0.01023162,3736.1,3735.8,0.3]
[1641409683990,1.0,3736.2,3735.8,0.3]
[1641409683991,0.0096632,3736.0,3735.8,0.3]
[1641409684241,0.0096632,3736.0,3735.0,1.33863]
[1641409684242,0.3296632,3736.0,3735.0,2.72904848]
[1641409684540,0.48334206,3735.7,3735.0,3.5275162]
[1641409684741,2.48349668,3735.6,3735.0,2.72904848]
[1641409684939,1.00413836,3735.5,3735.0,2.72904848]
[1641409685147,0.00682108,3735.5,3735.0,2.72904848]
[1641409685344,0.00625265,3735.4,3734.4,1.00607847]
[1641409685744,0.00568423,3735.3,3735.1,0.60054653]
[1641409685950,0.00568423,3735.3,3735.1,0.90054653]
[1641409686146,0.27511581,3735.7,3735.1,0.90054653]
[1641409686448,0.094868,3735.2,3735.1,1.20054653]
[1641409686644,0.094868,3735.2,3735.1,0.90054653]
[1641409686845,0.094868,3735.2,3735.1,0.3]
[1641409687046,0.094868,3735.2,3734.4,4.06794848]
[1641409687246,0.094868,3735.2,3734.4,3.02904848]
[1641409687448,0.094868,3735.2,3734.5,0.00397897]
[1641409687889,0.094868,3735.2,3734.9,0.98418593]
[1641409688276,0.094868,3735.2,3735.0,0.00113685]
[1641409689676,6.8e-05,3735.2,3735.0,0.00113685]
[1641409689876,0.00227369,3735.6,3735.1,7.16277377]
[1641409690074,0.00227369,3735.6,3735.2,1.6692]
[1641409690277,0.00170527,3735.5,3735.3,0.5353898]
[1641409690676,0.00113684,3735.4,3735.3,0.8353898]
[1641409690876,1.74068084,3736.8,3735.4,7.15]
[1641409691080,1.74068084,3736.8,3735.8,0.06692]
[1641409691280,0.00738951,3736.7,3735.5,1.0]
[1641409691479,0.00738951,3736.7,3735.5,1.6]
[1641409691730,0.32,3737.0,3735.5,1.6]
[1641409691731,0.00682109,3736.6,3735.5,1.6]
[1641409692127,1.74068084,3736.9,3735.5,1.6]
[1641409692128,0.00625266,3736.5,3735.5,1.6]
[1641409692328,0.00625266,3736.5,3736.4,0.67876158]
[1641409692530,2.06068084,3737.0,3736.4,0.97876158]
[1641409692929,0.00795793,3736.8,3736.4,1.27876158]
[1641409693330,1.74068084,3737.0,3736.5,7.15]
[1641409693636,1.74068084,3737.0,3736.6,0.33273655]
[1641409693829,2.71780197,3737.3,3736.7,7.5513559]
[1641409694031,0.1109,3737.3,3737.1,0.59289355]
[1641409694230,0.1109,3737.3,3736.7,0.7013559]
[1641409694231,0.0022737,3737.2,3736.8,0.3]
[1641409694429,0.0022737,3737.2,3736.9,0.66894]
[1641409694630,0.00170527,3737.1,3737.0,0.3]
[1641409695030,0.00170527,3737.1,3737.0,0.6]
[1641409695230,0.00170527,3737.1,3736.9,0.80276]
[1641409695231,0.64945226,3737.1,3736.9,0.80276]
[1641409695478,0.64945226,3737.1,3736.8,1.63788]
[1641409695479,0.32170527,3737.1,3736.8,1.63788]
[1641409695684,0.00113685,3737.0,3736.8,1.63788]
[1641409696783,0.00113685,3737.0,3736.8,0.86699809]
[1641409697288,0.00113685,3737.0,3736.7,1.26924]
[1641409698086,0.00113685,3737.0,3736.8,1.33831]
[1641409698287,0.00113685,3737.0,3736.9,5.22284987]
[1641409698486,0.00113685,3737.0,3736.9,5.52284987]
[1641409698891,0.1109,3737.3,3736.9,0.92284987]
[1641409699131,0.1109,3737.3,3736.9,1.63024197]
[1641409699333,2.60690197,3737.8,3737.0,7.15825119]
[1641409699530,2.60690197,3737.8,3737.2,1.47171]
[1641409699730,0.00284211,3737.7,3737.3,0.3]
[1641409699933,0.00284211,3737.7,3737.3,0.7682728]
[1641409700136,0.00227369,3737.6,3737.3,0.7682728]
[1641409700337,2.60690197,3737.9,3737.3,1.4372328]
[1641409700538,2.60690197,3737.9,3737.4,0.00113684]
[1641409700737,0.00113685,3737.8,3737.5,0.13379]
[1641409700936,2.60690197,3738.0,3737.6,0.50390285]
[1641409701137,2.60690197,3738.0,3737.6,0.57193969]
[1641409701340,2.60690197,3738.1,3737.6,0.57193969]
[1641409701546,2.60690197,3738.1,3737.8,0.66902]
[1641409701739,2.60860724,3738.1,3737.8,0.66902]
[1641409702141,2.60690197,3737.9,3737.8,0.66902]
[1641409702976,2.60690197,3737.9,3737.8,0.96902]
[1641409703173,2.60690197,3737.9,3737.8,1.26902]
[1641409703577,0.66905,3738.0,3737.8,1.26902]
[1641409703778,0.66905,3738.0,3737.8,0.96902]
[1641409703975,3.47354082,3738.1,3737.9,1.63796]
[1641409704181,3.47354082,3738.1,3737.9,1.40486]
[1641409704376,2.64612768,3738.0,3737.9,1.70486]
[1641409704577,2.64612768,3738.0,3737.9,1.63796]
[1641409705180,0.00170527,3738.1,3737.9,1.93796]
[1641409705778,0.00170527,3738.1,3738.0,0.3]
[1641409705979,0.32170527,3738.1,3737.9,0.3]
[1641409706192,0.01236375,3738.0,3737.8,2e-05]
[1641409706380,1.32,3737.9,3737.8,2e-05]
[1641409706827,1.32,3737.9,3737.6,0.00113684]
[1641409706828,3.7,3737.7,3737.6,0.00113684]
[1641409707022,0.9892,3737.7,3737.6,0.00113684]
[1641409707225,0.9892,3737.7,3737.4,0.0022737]
[1641409707427,0.9892,3737.7,3737.6,0.57526533]
[1641409707428,0.32,3737.7,3737.6,0.57526533]
[1641409707632,0.00113684,3738.0,3737.6,0.57526533]
[1641409707827,0.00113684,3738.0,3737.6,1.54535218]
[1641409708029,3.79183555,3738.8,3737.7,7.45]
[1641409708230,1.74981226,3738.9,3738.1,0.06688]
[1641409708428,1.74981226,3738.9,3738.7,0.51070079]
[1641409708832,1.74981226,3738.9,3738.7,0.81070079]
[1641409709034,0.32,3739.3,3738.7,1.11070079]
[1641409709435,0.32,3739.3,3739.0,0.66883]
[1641409709632,0.32,3739.3,3739.0,1.26883]
[1641409710030,0.66882,3739.1,3739.0,0.96883]
[1641409710231,0.66882,3739.1,3739.0,1.26883]
[1641409710472,0.67507266,3739.1,3739.0,0.66883]
[1641409711480,0.00625266,3739.1,3739.0,0.66883]
[1641409711880,0.00625266,3739.1,3739.0,0.96883]
[1641409713779,0.17499266,3739.5,3739.0,0.96883]
[1641409713978,0.17499266,3739.5,3739.1,1.33753]
[1641409714235,0.00170527,3739.4,3739.2,0.6]
[1641409714640,0.00113685,3739.3,3739.2,0.6]
[1641409716439,0.02612951,3739.5,3739.3,0.6810502]
[1641409718318,1.75384349,3739.4,3739.3,0.6810502]
[1641409719225,1.75384349,3739.6,3739.3,0.6810502]
[1641409719624,1.75554876,3739.6,3739.3,0.6810502]
[1641409719830,1.75554876,3739.6,3739.4,0.75430822]
[1641409720026,1.75554876,3739.6,3739.4,1.35430822]
[1641409720726,0.00170527,3739.6,3739.4,1.35430822]
[1641409721329,0.00170527,3739.6,3739.4,1.38598062]
[1641409721528,0.00170527,3739.6,3739.4,1.35430822]
[1641409721929,0.62025527,3740.6,3739.5,7.15]
[1641409722129,0.62025527,3740.6,3739.9,0.66856]
[1641409722335,0.00511581,3740.5,3739.9,0.66856]
[1641409722529,0.00511581,3740.5,3739.9,0.96856]
[1641409722730,0.00454739,3740.4,3739.9,0.3]
[1641409723132,2.62944808,3740.0,3739.9,0.3]
[1641409723534,2.63172177,3740.0,3739.9,0.3]
[1641409723734,2.63172177,3740.0,3739.9,4.09090605]
[1641409723933,2.63172177,3740.0,3739.9,0.79090605]
[1641409724536,0.00227369,3740.0,3739.9,0.79090605]
[1641409725135,0.00227369,3740.0,3739.9,0.3]
[1641409725384,0.00227369,3740.0,3739.8,0.3]
[1641409725585,0.67099369,3740.0,3739.7,0.3]
[1641409725786,0.00170527,3739.9,3738.9,2.71376199]
[1641409725986,0.00170527,3739.9,3738.9,2.11376199]
[1641409726186,0.00170527,3739.9,3738.7,0.28296903]
[1641409726187,0.00113685,3739.8,3739.7,0.65826576]
[1641409726586,0.00227369,3739.8,3739.7,0.65826576]
[1641409727989,0.00227369,3739.8,3739.7,0.95826576]
[1641409728189,0.00227369,3739.8,3739.6,0.3]
[1641409728388,0.00227369,3739.8,3739.6,0.6]
[1641409728793,2.64940312,3739.8,3739.6,0.6]
[1641409728996,2.64940312,3739.8,3738.7,0.24931994]
[1641409729270,0.66878,3739.4,3739.0,0.66876]
[1641409729470,0.98878,3739.4,3739.0,0.66876]
[1641409729669,0.98878,3739.4,3739.1,0.00284212]
[1641409729870,0.98878,3739.4,3739.1,0.66819807]
[1641409730279,0.98878,3739.4,3739.2,0.00227369]
[1641409730474,3.63590943,3739.4,3739.2,0.00227369]
[1641409731075,1.6575851,3739.4,3739.2,0.00227369]
[1641409731276,0.98878,3739.4,3739.1,0.00284212]
[1641409731675,0.98878,3739.4,3738.8,0.00454739]
[1641409731976,0.98878,3739.4,3738.8,0.30454739]
[1641409732174,0.98878,3739.4,3738.8,0.67333739]
[1641409732376,0.98878,3739.4,3738.9,0.52225278]
[1641409732575,0.98878,3739.4,3738.9,0.82225278]
[1641409732781,1.6575798,3739.4,3739.0,0.00341054]
[1641409733780,1.6575798,3739.4,3738.9,0.00397896]
[1641409733781,0.66884,3739.2,3738.9,0.00397896]
[1641409733979,0.32,3739.1,3738.9,0.00397896]
[1641409734179,0.32,3739.1,3738.7,0.00511581]
[1641409734379,0.32,3739.1,3738.1,0.00852635]
[1641409734583,0.49067828,3738.6,3738.1,0.00852635]
[1641409734785,0.32,3739.1,3738.1,0.00852635]
[1641409734786,1.0017822,3738.9,3738.1,0.00852635]
[1641409734983,1.3217822,3738.9,3738.1,0.00852635]
[1641409735185,0.6689274,3738.7,3738.1,0.00852635]
[1641409735389,0.66897,3738.4,3738.1,0.00852635]
[1641409736083,0.66897,3738.4,3737.9,0.0096632]
[1641409736284,0.66897,3738.4,3737.9,0.3096632]
[1641409736483,0.66897,3738.4,3737.9,1.52653951]
[1641409736735,0.66897,3738.4,3738.0,0.00909478]
[1641409736935,2.33772,3739.1,3738.2,1.33764]
[1641409737135,0.385,3739.0,3738.2,1.33764]
[1641409737336,0.385,3739.0,3738.3,0.30738951]
[1641409737736,0.385,3739.0,3738.5,0.66836605]
[1641409738136,0.385,3739.0,3738.6,0.00568423]
[1641409740239,0.66882,3738.9,3738.6,0.00568423]
[1641409741278,0.66882,3738.9,3738.3,0.6347053]
[1641409741482,0.66882,3738.9,3738.3,0.9347053]
[1641409741683,0.66877,3739.1,3738.4,0.00682108]
[1641409743283,0.66877,3739.1,3738.9,0.97342026]
[1641409743486,1.00227369,3739.8,3738.9,0.97342026]
[1641409743684,0.00227369,3739.8,3739.0,0.67206054]
[1641409744125,0.6686352,3739.7,3739.1,0.00284212]
[1641409745029,0.6686352,3739.7,3739.3,0.90857654]
[1641409745427,0.6686352,3739.7,3739.4,0.00113685]
[1641409746634,1.3372874,3739.6,3739.4,0.00113685]
[1641409747979,2.0059774,3739.6,3739.4,0.00113685]
[1641409749378,2.0059774,3739.6,3739.1,0.00284212]
[1641409749580,2.0059774,3739.6,3739.0,0.00341054]
[1641409749581,1.3375127,3739.4,3739.0,0.00341054]
[1641409749780,1.3375053,3739.3,3739.0,0.00341054]
[1641409749980,1.3375053,3739.3,3738.9,0.67936413]
[1641409750382,1.3375053,3739.3,3739.0,0.00341054]
[1641409750980,0.66877,3739.2,3739.0,0.00341054]
[1641409751181,1.33752,3739.2,3739.0,0.00341054]
[1641409751383,1.72252,3739.2,3739.0,0.00341054]
[1641409751638,4.2,3739.1,3738.8,0.00454739]
[1641409751838,1.3378617,3738.8,3738.3,0.00738951]
[1641409752036,1.3378617,3738.8,3737.8,2.69869005]
[1641409752037,0.66893,3738.6,3737.9,0.0096632]
[1641409752240,0.66893,3738.6,3738.0,2.23780393]
[1641409752441,1.22183469,3738.6,3738.0,2.23780393]
[1641409752640,1.22183469,3738.6,3738.1,0.00852635]
[1641409753042,1.3378896,3738.4,3738.1,0.00852635]
[1641409753244,0.66895,3738.3,3738.1,0.00852635]
[1641409753449,0.66895,3738.3,3738.0,1.34697478]
[1641409753646,0.66895,3738.3,3738.2,0.66896]
[1641409753843,1.72286,3738.7,3738.2,0.66896]
[1641409754043,1.72286,3738.7,3738.2,0.67691793]
[1641409754248,1.72286,3738.7,3737.2,2.23780393]
[1641409754249,4.82816123,3738.3,3737.2,2.23780393]
[1641409754447,4.82816123,3738.3,3737.0,2.69869005]
[1641409754448,0.01293433,3737.4,3737.0,2.69869005]
[1641409754645,0.97261604,3737.3,3737.0,2.69869005]
[1641409754845,2.31132604,3737.3,3737.1,2.69869005]
[1641409755147,4.7,3737.2,3736.8,3.63962388]
[1641409755382,1.24696882,3737.1,3736.8,3.63962388]
[1641409755584,4.816,3736.9,3736.3,4.5461014]
[1641409755783,0.66941,3736.6,3736.3,4.5461014]
[1641409755988,0.66941,3736.6,3735.7,6.06146853]
[1641409755989,5.65,3736.4,3735.7,6.06146853]
[1641409756186,5.65,3736.4,3734.8,3.0698]
[1641409756187,0.6659575,3735.5,3734.8,3.0698]
[1641409756383,0.385,3736.3,3734.8,0.84442101]
[1641409756384,0.385,3735.4,3734.8,0.84442101]
[1641409756585,0.385,3735.4,3734.7,10.71673949]
[1641409756787,0.6695,3735.1,3734.7,10.71673949]
[1641409756986,0.6695,3735.1,3734.8,0.00909478]
[1641409757186,0.385,3735.0,3734.8,0.00909478]
[1641409757786,1.33922,3734.9,3734.8,0.00909478]
[1641409757986,1.72422,3734.9,3734.8,2.92]
[1641409758188,3.35585913,3734.9,3734.8,2.92]
[1641409758592,9.66985985,3734.9,3734.0,0.00454738]
[1641409758787,14.83885985,3734.9,3734.0,0.00454738]
[1641409758990,4.816,3734.1,3733.4,0.00795792]
[1641409759240,0.385,3734.0,3733.2,0.00909477]
[1641409759438,4.816,3733.7,3733.2,0.00909477]
[1641409759634,0.81686575,3733.3,3732.8,0.01136847]
[1641409759835,0.385,3733.2,3732.8,0.01136847]
[1641409760038,1.72489,3733.1,3732.8,0.01136847]
[1641409760237,1.33989,3733.1,3732.8,0.01136847]
[1641409760441,1.33989,3733.1,3732.4,0.01364216]
[1641409760635,0.335,3733.0,3732.6,0.66995]
[1641409760837,0.385,3733.0,3732.6,0.66995]
[1641409761038,0.385,3733.0,3732.7,1.35174689]
[1641409761246,0.51639057,3733.3,3732.7,1.35174689]
[1641409761443,2.80997364,3733.6,3732.8,0.01136847]
[1641409761642,2.83336097,3733.6,3732.8,0.01136847]
[1641409761842,0.385,3733.6,3732.8,0.01136847]
[1641409762141,0.66985,3733.3,3733.1,0.66986]
[1641409762344,0.385,3733.2,3733.1,0.66986]
[1641409762546,7.72509099,3733.2,3732.5,1.33981]
[1641409762744,7.72509099,3733.2,3731.3,0.24892995]
[1641409762745,5.201,3733.2,3731.9,2.00975]
[1641409762986,0.6700061,3733.0,3732.6,0.01250531]
[1641409763280,0.385,3732.9,3732.6,0.01250531]
[1641409763481,3.5886,3733.7,3732.8,7.15]
[1641409763681,0.385,3733.6,3732.9,9.52916624]
[1641409763985,0.385,3733.5,3733.1,1.33936]
[1641409764181,4.816,3734.2,3733.2,0.3]
[1641409764383,1.3392774,3735.6,3733.2,0.30909477]
[1641409764583,1.33928,3735.0,3733.7,0.66966]
[1641409764783,0.48588326,3735.1,3734.0,1.0606322]
[1641409764983,1.0,3734.8,3734.6,0.57865018]
[1641409765183,1.0,3734.8,3734.1,0.3]
[1641409765184,1.0,3734.8,3734.1,0.30397896]
[1641409765586,1.0,3734.8,3734.2,0.00341054]
[1641409765784,0.99848392,3734.8,3734.2,0.00341054]
[1641409765984,0.99848392,3734.8,3734.4,1.33906]
[1641409766185,2.21505145,3734.8,3734.4,1.33906]
[1641409766387,2.21505145,3734.8,3734.5,0.00170527]
[1641409766642,1.66810392,3734.8,3734.5,0.00170527]
[1641409767040,0.66962,3734.8,3734.5,0.00170527]
[1641409768547,0.66957,3735.2,3734.5,0.00170527]
[1641409768745,0.9984,3735.7,3734.5,0.00170527]
[1641409768746,0.9984,3735.7,3734.5,2.71404205]
[1641409768944,0.9984,3735.7,3734.9,1.33881]
[1641409768945,0.00170527,3735.1,3734.9,1.33881]
[1641409769148,0.00454739,3735.6,3735.0,1.70962368]
[1641409769346,0.84526383,3736.5,3735.1,2.0]
[1641409769545,1.33877,3736.6,3735.3,2.0]
[1641409769747,0.00568424,3735.8,3735.4,4.42727545]
[1641409769947,0.00568424,3735.8,3735.5,2.0]
[1641409770144,0.00511581,3735.7,3735.5,2.0]
[1641409770400,0.00511581,3735.7,3735.6,8.38466093]
[1641409770586,0.66932,3736.7,3735.6,8.38466093]
[1641409770587,0.66932,3736.7,3735.6,9.21624424]
[1641409770786,0.66932,3736.7,3736.1,0.66928]
[1641409770986,0.01023163,3736.6,3736.1,0.96928]
[1641409771492,0.0096632,3736.5,3736.0,0.3]
[1641409771700,0.66946,3736.1,3735.6,0.3]
[1641409771894,0.66946,3736.1,3735.4,0.66942]
[1641409772193,0.00682109,3736.0,3735.5,0.3]
[1641409772395,0.00682109,3736.0,3735.5,0.6]
[1641409772597,0.66946,3736.1,3735.8,1.62587093]
[1641409772598,0.00011266,3736.1,3735.8,1.62587093]
[1641409772797,15.55,3737.8,3736.0,7.15]
[1641409772996,13.5917,3737.8,3736.2,2.0]
[1641409773198,0.49881906,3738.2,3737.7,2.0]
[1641409773400,0.49881906,3738.2,3738.0,0.01261781]
[1641409773595,0.20911906,3738.2,3738.1,0.01245009]
[1641409773801,1.30770094,3739.9,3738.1,0.39745009]
[1641409773997,1.30770094,3739.9,3738.2,9.48015664]
[1641409774252,0.00909478,3739.8,3739.7,2.0]
[1641409774445,0.00909478,3739.8,3739.7,2.66864]
[1641409774644,0.00909478,3739.8,3739.7,1.23897992]
[1641409775044,0.00909478,3739.8,3739.7,0.57033992]
[1641409777556,0.00909478,3739.8,3739.1,0.66883]
[1641409777749,0.07464377,3739.8,3739.1,0.66883]
[1641409777985,0.00852635,3739.7,3739.1,0.66883]
[1641409778384,0.00795793,3739.6,3739.1,0.66883]
[1641409778685,0.00738951,3739.5,3739.1,0.66883]
[1641409779092,1.31224841,3739.3,3739.1,0.66883]
[1641409779289,1.31224841,3739.3,3738.7,2.00609]
[1641409779493,18.54628409,3739.5,3738.6,0.6689]
[1641409779494,15.60568424,3739.2,3738.6,0.6689]
[1641409779889,15.60568424,3739.2,3739.0,0.49033631]
[1641409779890,0.67403581,3739.1,3739.0,0.49033631]
[1641409780088,0.67403581,3739.1,3738.6,0.6689]
[1641409780488,0.00454739,3739.0,3738.6,0.6689]
[1641409780890,0.00397897,3738.9,3738.6,0.6689]
[1641409781092,0.00397897,3738.9,3738.4,2.0]
[1641409781093,0.385,3738.8,3738.4,2.0]
[1641409781291,0.38841054,3738.8,3738.4,2.0]
[1641409781491,0.00284212,3738.7,3738.3,0.53736022]
[1641409781737,0.385,3738.6,3738.3,0.53736022]
[1641409781936,0.3872737,3738.6,3738.3,0.53736022]
[1641409782144,15.60170527,3738.5,3738.3,6.022e-05]
[1641409782338,0.385,3738.4,3737.6,0.81878]
[1641409782538,15.6,3738.0,3737.6,0.81878]
[1641409782739,0.385,3737.9,3737.7,0.00284212]